bitfinex/quotes_BTCUSD_20250408
["timestamp","ask_amount","ask_price","bid_price","bid_amount"]
[1744126786303,0.254272,78656.0,78652.0,0.254284]
[1744126786694,0.254277,78655.0,78651.0,0.254286]
[1744126786895,0.255277,78655.0,78652.0,0.254283]
[1744126787034,0.254277,78655.0,78652.0,0.254283]
[1744126787237,0.34,78651.0,78648.0,0.254297]
[1744126787593,0.34,78651.0,78650.0,0.267005]
[1744126787735,0.34,78651.0,78650.0,0.254291]
[1744126788350,0.34,78651.0,78648.0,0.254297]
[1744126788548,0.012714,78650.0,78644.0,0.00046079]
[1744126788772,0.34,78648.0,78644.0,0.25476979]
[1744126788971,0.34,78648.0,78646.0,0.254301]
[1744126789171,0.34,78648.0,78647.0,0.2543]
[1744126789755,0.352714,78649.0,78644.0,0.25677079]
[1744126789950,0.34,78649.0,78648.0,0.254297]
[1744126790156,0.34,78649.0,78648.0,0.267011]
[1744126790555,0.34,78649.0,78648.0,0.254297]
[1744126790938,0.34,78650.0,78647.0,0.012715]
[1744126791393,0.34,78650.0,78649.0,0.254294]
[1744126791739,0.34,78650.0,78649.0,0.267008]
[1744126791941,0.594284,78653.0,78649.0,0.267008]
[1744126792143,0.34,78653.0,78652.0,0.012714]
[1744126792346,0.34,78657.0,78653.0,0.012714]
[1744126792707,0.34,78657.0,78653.0,0.266994]
[1744126792927,0.34,78657.0,78656.0,0.254271]
[1744126793124,0.34,78657.0,78655.0,0.254273]
[1744126793343,0.34,78657.0,78648.0,0.26701]
[1744126793344,0.012713,78656.0,78651.0,0.012714]
[1744126793551,0.352713,78655.0,78650.0,0.254281]
[1744126793724,0.34,78653.0,78651.0,0.254287]
[1744126793902,0.34,78653.0,78652.0,0.254284]
[1744126794156,0.34,78653.0,78652.0,0.266998]
[1744126794768,0.34,78660.0,78658.0,0.254263]
[1744126795346,0.34,78660.0,78659.0,0.254262]
[1744126795551,0.34,78657.0,78655.0,0.254274]
[1744126795747,0.34,78657.0,78656.0,0.254271]
[1744126795984,0.34,78657.0,78656.0,0.266984]
[1744126796188,0.34,78657.0,78654.0,0.254277]
[1744126796401,0.012714,78651.0,78629.0,0.558013]
[1744126796623,0.254297,78650.0,78648.0,0.254297]
[1744126796822,0.254281,78653.0,78650.0,0.25429]
[1744126797012,0.254294,78649.0,78644.0,0.25476979]
[1744126797214,0.267005,78650.0,78645.0,0.13897364]
[1744126797612,0.267002,78651.0,78647.0,0.254297]
[1744126797819,0.254285,78652.0,78648.0,0.254296]
[1744126798053,0.254285,78652.0,78649.0,0.254291]
[1744126798378,0.594281,78653.0,78650.0,0.254289]
[1744126798578,0.34,78651.0,78650.0,0.254289]
[1744126799186,0.11144502,78712.0,78665.0,0.266954]
[1744126799187,0.012709,78682.0,78665.0,0.266954]
[1744126799395,0.5010207,78680.0,78670.0,0.012711]
[1744126799559,0.34,78678.0,78676.0,0.254204]
[1744126799754,0.34,78679.0,78678.0,0.26691]
[1744126799954,0.34,78679.0,78672.0,0.26693]
[1744126799955,0.35481895,78679.0,78672.0,0.26693]
[1744126800184,0.35481895,78679.0,78678.0,0.26691]
[1744126800375,0.01481895,78679.0,78678.0,0.2542]
[1744126800614,0.341,78680.0,78678.0,0.2542]
[1744126800869,0.341,78680.0,78677.0,0.254203]
[1744126800870,0.5952,78680.0,78677.0,0.254203]
[1744126800997,0.5952,78680.0,78672.0,0.012711]
[1744126800998,0.34,78670.0,78667.0,0.012711]
[1744126801197,0.34,78670.0,78667.0,0.00012499]
[1744126801493,0.34,78670.0,78669.0,0.26694]
[1744126802230,0.34,78675.0,78672.0,0.254216]
[1744126802461,0.34,78676.0,78673.0,0.254214]
[1744126802658,0.01271,78675.0,78669.0,0.012711]
[1744126802910,0.266913,78677.0,78670.0,0.266934]
[1744126803063,0.266913,78677.0,78674.0,0.254213]
[1744126803306,0.254203,78677.0,78674.0,0.254213]
[1744126803668,0.254207,78676.0,78673.0,0.254214]
[1744126803869,0.254203,78677.0,78674.0,0.254213]
[1744126804087,0.254203,78677.0,78674.0,0.254212]
[1744126804293,0.01416771,78679.0,78674.0,0.26692]
[1744126804491,0.012709,78681.0,78676.0,0.254207]
[1744126804710,0.254171,78687.0,78651.0,0.254287]
[1744126804711,0.012713,78656.0,78651.0,0.254287]
[1744126804943,0.012714,78650.0,78641.0,0.0463]
[1744126805081,0.012714,78650.0,78642.0,0.012715]
[1744126805281,0.012714,78650.0,78643.0,0.012715]
[1744126805485,0.012715,78647.0,78638.0,0.0003358]
[1744126805712,0.267022,78645.0,78638.0,0.0003358]
[1744126805915,0.267022,78645.0,78638.0,0.2546638]
[1744126806068,0.267022,78645.0,78638.0,0.0003358]
[1744126806271,0.607022,78645.0,78638.0,0.2673788]
[1744126806553,0.607022,78645.0,78644.0,0.0053358]
[1744126806795,0.607042,78639.0,78638.0,0.0003358]
[1744126806916,0.607042,78639.0,78623.0,0.11346484]
[1744126806917,0.60709,78625.0,78623.0,0.11346484]
[1744126807301,0.60709,78625.0,78624.0,0.00046044]
[1744126807506,0.352718,78624.0,78623.0,0.11346484]
[1744126807793,0.49351749,78624.0,78623.0,0.11346484]
[1744126807994,0.49351749,78624.0,78623.0,0.08203181]
[1744126808125,0.49351749,78624.0,78623.0,0.01840944]
[1744126808341,0.49351749,78624.0,78623.0,1e-08]
[1744126809438,0.49651749,78624.0,78623.0,1e-08]
[1744126809779,0.49351749,78624.0,78623.0,1e-08]
[1744126809992,0.50251749,78624.0,78623.0,0.00200001]
[1744126810192,0.50251749,78624.0,78623.0,0.002]
[1744126810562,0.62166785,78614.0,78613.0,0.0003358]
[1744126810777,0.74792649,78614.0,78613.0,0.0003358]
[1744126810950,0.75764543,78614.0,78613.0,0.0003358]
[1744126812125,0.74792649,78614.0,78613.0,0.0003358]
[1744126812327,0.74892649,78614.0,78613.0,0.0003358]
[1744126812619,0.75192649,78614.0,78613.0,0.0003358]
[1744126812822,0.75092649,78614.0,78613.0,0.0003358]
[1744126813233,0.75492649,78614.0,78613.0,0.0003358]
[1744126813653,0.607181,78598.0,78597.0,0.0003348]
[1744126814957,0.607201,78592.0,78591.0,0.0003348]
[1744126815301,0.74800049,78592.0,78591.0,0.0003348]
[1744126815507,0.77151048,78592.0,78591.0,0.0003348]
[1744126815703,0.77151048,78592.0,78591.0,8e-07]
[1744126816031,0.594582,78560.0,78548.0,0.254619]
[1744126816235,0.594582,78560.0,78539.0,0.012732]
[1744126816236,0.607338,78552.0,78540.0,0.267377]
[1744126816447,0.607338,78552.0,78538.0,0.25465]
[1744126816609,0.607338,78552.0,78537.0,0.302055]
[1744126816815,0.62187885,78552.0,78527.0,0.0496]
[1744126817048,0.62187885,78552.0,78530.0,0.012733]
[1744126817255,0.34,78535.0,78530.0,0.012733]
[1744126817451,0.352733,78535.0,78534.0,0.00075468]
[1744126818010,0.36725147,78535.0,78534.0,0.00075468]
[1744126818446,0.34,78523.0,78518.0,0.0130708]
[1744126818647,0.34,78523.0,78521.0,0.0008193]
[1744126818850,0.254692,78526.0,78521.0,0.0008193]
[1744126818851,0.267426,78526.0,78521.0,0.0008193]
[1744126819055,0.012733,78531.0,78521.0,0.0008193]
[1744126819056,0.34,78525.0,78524.0,0.012734]
[1744126819293,0.34,78525.0,78524.0,0.267433]
[1744126820469,0.34,78532.0,78531.0,0.012733]
[1744126820730,0.34,78532.0,78529.0,0.267413]
[1744126821056,0.34,78532.0,78531.0,0.254676]
[1744126821357,0.34,78532.0,78531.0,0.267409]
[1744126821565,0.254623,78548.0,78531.0,0.267409]
[1744126821566,0.012728,78563.0,78553.0,0.254603]
[1744126821760,0.012729,78559.0,78549.0,0.01273]
[1744126821982,0.34,78554.0,78550.0,0.267344]
[1744126822187,0.01428327,78554.0,78550.0,0.267343]
[1744126822388,0.012729,78559.0,78551.0,0.01273]
[1744126822584,0.41639483,78561.0,78557.0,0.012729]
[1744126822830,0.41639483,78570.0,78565.0,0.012728]
[1744126823063,0.012726,78574.0,78568.0,0.012727]
[1744126823202,0.25456,78567.0,78563.0,0.254571]
[1744126823400,0.34,78568.0,78563.0,0.012728]
[1744126823612,0.012727,78570.0,78566.0,0.254562]
[1744126823836,0.012727,78570.0,78565.0,0.267292]
[1744126823837,0.42912083,78578.0,78569.0,0.012727]
[1744126824036,0.012726,78574.0,78569.0,0.26728]
[1744126824245,0.254544,78572.0,78569.0,0.26728]
[1744126824488,0.34,78571.0,78569.0,0.254553]
[1744126824702,0.34,78571.0,78569.0,0.267279]
[1744126824875,0.012726,78574.0,78569.0,0.254552]
[1744126825304,0.012727,78572.0,78565.0,0.255563]
[1744126825501,0.012728,78566.0,78565.0,0.001]
[1744126825701,0.352728,78566.0,78565.0,0.001]
[1744126826150,0.34,78555.0,78550.0,0.254613]
[1744126826354,0.01273,78554.0,78544.0,0.185371]
[1744126826564,0.01273,78552.0,78546.0,0.267357]
[1744126826775,0.35273,78552.0,78546.0,0.254627]
[1744126826971,0.34,78552.0,78549.0,0.267345]
[1744126827170,0.34,78552.0,78550.0,0.254613]
[1744126827801,0.34,78554.0,78553.0,0.01273]
[1744126828369,0.341,78554.0,78553.0,0.01273]
[1744126828783,0.001,78554.0,78553.0,0.01273]
[1744126829052,0.34,78566.0,78564.0,0.254568]
[1744126829237,0.34,78566.0,78565.0,0.012728]
[1744126829631,0.41639483,78570.0,78566.0,0.267291]
[1744126829831,0.41639483,78570.0,78568.0,0.254556]
[1744126830036,0.254544,78572.0,78568.0,0.254556]
[1744126830230,0.28192067,78574.0,78570.0,0.25455]
[1744126830562,0.01465767,78574.0,78573.0,0.25454]
[1744126830785,0.012724,78588.0,78581.0,0.012725]
[1744126830967,0.012724,78586.0,78579.0,0.25452]
[1744126831172,0.254501,78585.0,78579.0,0.012726]
[1744126831347,0.254501,78585.0,78582.0,0.25451]
[1744126831545,0.0033217,78584.0,78582.0,0.25451]
[1744126831749,0.0033217,78584.0,78577.0,0.012726]
[1744126831750,0.254511,78582.0,78574.0,0.012726]
[1744126831992,0.43087241,78590.0,78560.0,0.0478]
[1744126831993,0.012727,78572.0,78560.0,0.0478]
[1744126832150,0.254535,78575.0,78571.0,0.254546]
[1744126832357,0.594523,78579.0,78570.0,0.267275]
[1744126832358,0.00257498,78571.0,78570.0,0.267275]
[1744126832562,0.254527,78577.0,78574.0,0.254536]
[1744126832895,0.00302943,78576.0,78575.0,0.012726]
[1744126833094,0.00302943,78576.0,78575.0,0.267259]
[1744126833326,0.43087241,78590.0,78584.0,0.267229]
[1744126833327,0.01447758,78590.0,78584.0,0.267229]
[1744126833478,0.01447758,78590.0,78586.0,0.012724]
[1744126833680,0.34,78593.0,78589.0,0.012724]
[1744126833857,0.002,78599.0,78598.0,0.254459]
[1744126834062,0.012723,78597.0,78590.0,0.012724]
[1744126834410,0.012723,78597.0,78588.0,0.254489]
[1744126834411,0.012723,78596.0,78588.0,0.012724]
[1744126834579,0.012723,78595.0,78589.0,0.00012569]
[1744126834982,0.607209,78590.0,78589.0,0.00012569]
[1744126835566,0.34,78590.0,78589.0,0.00012569]
[1744126836152,0.613209,78590.0,78589.0,0.00112569]
[1744126836575,0.607209,78590.0,78589.0,0.00012569]
[1744126836770,0.613209,78590.0,78589.0,0.00012569]
[1744126837277,0.62774985,78590.0,78589.0,0.00012569]
[1744126838016,0.63174985,78590.0,78589.0,0.00012569]
[1744126838982,0.6345516,78590.0,78589.0,0.00012569]
[1744126839384,0.35280175,78590.0,78589.0,0.26733769]
[1744126839610,0.35280175,78590.0,78589.0,0.25461369]
[1744126839991,0.01280175,78590.0,78589.0,0.00012569]
[1744126840324,0.28001075,78590.0,78589.0,0.00012569]
[1744126840810,0.27601075,78590.0,78589.0,0.00012569]
[1744126841888,0.28001075,78590.0,78589.0,0.00012569]
[1744126842131,0.61401075,78590.0,78589.0,0.00012569]
[1744126842348,0.61601075,78590.0,78589.0,0.00012569]
[1744126842551,0.61401075,78590.0,78589.0,0.00012569]
[1744126842879,0.62001075,78590.0,78589.0,0.00012569]
[1744126845199,0.76081024,78590.0,78589.0,0.00012569]
[1744126845397,0.254562,78567.0,78560.0,0.060529]
[1744126845626,0.254578,78562.0,78560.0,0.00012574]
[1744126845827,0.254569,78564.0,78560.0,0.25470674]
[1744126846162,0.254569,78565.0,78561.0,0.254578]
[1744126846349,0.00380956,78563.0,78562.0,0.254574]
[1744126846581,0.254567,78565.0,78562.0,0.254575]
[1744126846799,0.254552,78570.0,78566.0,0.25456]
[1744126847146,0.254556,78569.0,78566.0,0.25456]
[1744126847358,0.254558,78568.0,78565.0,0.267291]
[1744126847564,0.267254,78577.0,78572.0,0.25454]
[1744126847754,0.254536,78575.0,78571.0,0.267267]
[1744126847965,0.25453,78576.0,78572.0,0.254543]
[1744126848276,0.254524,78578.0,78573.0,0.254538]
[1744126848277,0.254527,78577.0,78573.0,0.254538]
[1744126848446,0.254546,78571.0,78567.0,0.012727]
[1744126848601,0.012727,78571.0,78567.0,0.254557]
[1744126848804,0.267269,78573.0,78569.0,0.254553]
[1744126848805,0.012727,78573.0,78569.0,0.254553]
[1744126849005,0.34,78571.0,78566.0,0.002]
[1744126849204,0.34,78568.0,78567.0,0.254559]
[1744126849406,0.34,78568.0,78561.0,0.254576]
[1744126849407,0.34,78566.0,78561.0,0.254576]
[1744126849625,0.34,78564.0,78563.0,0.254572]
[1744126850039,0.594571,78564.0,78561.0,0.254573]
[1744126850420,0.34,78564.0,78563.0,0.2673]
[1744126850861,0.34,78572.0,78571.0,0.267273]
[1744126851085,0.17248,78595.0,78589.0,0.012724]
[1744126851322,0.254485,78591.0,78586.0,0.012724]
[1744126851547,0.02696355,78596.0,78586.0,0.012724]
[1744126851548,0.01424055,78596.0,78594.0,0.267194]
[1744126851773,0.01424055,78596.0,78595.0,0.267192]
[1744126852002,0.002,78599.0,78598.0,0.267181]
[1744126852280,0.002,78599.0,78597.0,0.254462]
[1744126852512,0.00212544,78599.0,78597.0,0.267185]
[1744126852729,0.00247684,78598.0,78597.0,0.267185]
[1744126852957,0.012723,78597.0,78589.0,0.254486]
[1744126853147,0.267185,78597.0,78590.0,0.012724]
[1744126853354,0.01380636,78598.0,78596.0,0.254463]
[1744126853554,0.012723,78595.0,78591.0,0.25448]
[1744126853823,0.254471,78595.0,78592.0,0.254477]
[1744126853999,0.01880636,78598.0,78597.0,0.267185]
[1744126854350,0.01380636,78598.0,78597.0,0.267185]
[1744126854553,0.01780636,78598.0,78597.0,0.267185]
[1744126855163,0.02180636,78598.0,78597.0,0.267185]
[1744126855955,0.01780636,78598.0,78597.0,0.267185]
[1744126856263,0.02280636,78598.0,78597.0,0.267185]
[1744126856464,0.01780636,78598.0,78597.0,0.267185]
[1744126856879,0.01780636,78598.0,78594.0,0.012723]
[1744126857114,0.01380636,78598.0,78595.0,0.254469]
[1744126857371,0.01380636,78598.0,78597.0,0.002]
[1744126857631,0.01380636,78598.0,78597.0,0.269185]
[1744126858083,0.01380636,78598.0,78597.0,0.267185]
[1744126858511,0.0001681,78610.0,78609.0,0.267144]
[1744126859119,0.0001681,78610.0,78606.0,0.254433]
[1744126859328,0.00209292,78610.0,78609.0,0.254423]
[1744126859466,0.00209292,78610.0,78608.0,0.267145]
[1744126859922,0.00209292,78610.0,78608.0,0.254424]
[1744126860122,0.01635488,78610.0,78609.0,0.254423]
[1744126860327,0.00209292,78610.0,78609.0,0.254423]
[1744126860484,0.00209292,78610.0,78609.0,0.256423]
[1744126860685,0.00209292,78610.0,78609.0,0.269144]
[1744126861725,0.01437484,78610.0,78609.0,0.269144]
[1744126861933,0.01437484,78610.0,78609.0,0.39540264]
[1744126862140,0.01437484,78610.0,78609.0,0.68419024]
[1744126862141,0.0001681,78610.0,78609.0,0.68419024]
[1744126862419,0.02647439,78613.0,78612.0,0.267134]
[1744126862420,4.9e-07,78613.0,78612.0,0.267134]
[1744126862600,4.9e-07,78613.0,78612.0,0.39339264]
[1744126863674,4.9e-07,78613.0,78612.0,0.41709771]
[1744126863946,0.00100049,78613.0,78612.0,0.43453062]
[1744126864179,4.9e-07,78613.0,78612.0,0.43453062]
[1744126864378,5.9e-07,78617.0,78616.0,0.267121]
[1744126864587,5.9e-07,78617.0,78616.0,0.39337964]
[1744126864765,5.9e-07,78617.0,78616.0,0.41708471]
[1744126865352,5.9e-07,78617.0,78616.0,0.39337964]
[1744126865881,5.9e-07,78617.0,78616.0,0.44097964]
[1744126866084,0.0001681,78622.0,78621.0,0.267103]
[1744126866289,0.0001681,78622.0,78621.0,0.39336164]
[1744126866701,0.0001681,78622.0,78621.0,0.41701052]
[1744126866982,0.0001681,78622.0,78621.0,0.83141052]
[1744126867181,0.0001681,78622.0,78621.0,0.83060654]
[1744126867408,0.0001681,78622.0,78621.0,0.80695766]
[1744126867607,0.0011681,78622.0,78621.0,0.80995766]
[1744126867834,0.0011681,78622.0,78621.0,0.81695766]
[1744126868309,0.0001681,78622.0,78621.0,0.81395766]
[1744126869105,0.0011681,78622.0,78621.0,0.80995766]
[1744126869626,0.0011681,78622.0,78621.0,0.81595766]
[1744126869850,0.0011681,78622.0,78621.0,0.80995766]
[1744126869976,0.0011681,78622.0,78621.0,0.81595766]
[1744126870375,0.0001681,78622.0,78621.0,0.81295766]
[1744126870787,0.0011681,78622.0,78621.0,0.80995766]
[1744126871238,0.0001681,78622.0,78621.0,0.81195766]
[1744126871613,0.0011681,78622.0,78621.0,0.81495766]
[1744126872033,0.18402667,78647.0,78643.0,0.254312]
[1744126872353,0.00098311,78646.0,78643.0,0.254312]
[1744126872566,0.01369811,78646.0,78641.0,0.254317]
[1744126872784,0.254308,78645.0,78641.0,0.254317]
[1744126872977,0.25472014,78647.0,78643.0,0.254313]
[1744126873411,0.254304,78646.0,78642.0,0.254316]
[1744126873564,0.254304,78646.0,78642.0,0.254315]
[1744126873764,0.34,78645.0,78642.0,0.254315]
[1744126873973,0.34,78645.0,78643.0,0.254313]
[1744126874375,0.34,78645.0,78644.0,0.267025]
[1744126874577,0.01413241,78646.0,78645.0,0.267022]
[1744126874779,0.003,78646.0,78645.0,0.267022]
[1744126875025,0.0173475,78646.0,78645.0,0.267022]
[1744126875175,0.0143475,78646.0,78645.0,0.267022]
[1744126875376,0.00041914,78647.0,78646.0,0.267019]
[1744126876440,0.00041914,78647.0,78646.0,0.39327764]
[1744126877215,0.00041914,78647.0,78646.0,0.39727764]
[1744126877390,0.00041914,78647.0,78646.0,0.42086928]
[1744126877590,0.00041914,78647.0,78646.0,0.41686928]
[1744126877993,0.00141914,78647.0,78646.0,0.42086928]
[1744126878698,0.00141914,78647.0,78646.0,0.39727764]
[1744126879175,0.00141914,78647.0,78646.0,0.40427764]
[1744126880985,0.00141914,78647.0,78646.0,0.278019]
[1744126881231,0.25571914,78647.0,78646.0,0.011]
[1744126881423,0.00141914,78647.0,78646.0,0.011]
[1744126881594,0.00141914,78647.0,78646.0,0.278019]
[1744126881794,0.00141914,78647.0,78646.0,0.265304]
[1744126882416,0.00141914,78647.0,78646.0,0.258304]
[1744126882863,0.00141914,78647.0,78646.0,0.274019]
[1744126883043,0.00041914,78647.0,78646.0,0.270019]
[1744126883227,0.00141914,78647.0,78646.0,0.274019]
[1744126883683,0.00141914,78647.0,78646.0,0.261304]
[1744126883796,0.00041914,78647.0,78646.0,0.257304]
[1744126884018,0.00141914,78647.0,78646.0,0.274019]
[1744126884661,0.00041914,78647.0,78646.0,0.270019]
[1744126884983,0.00041914,78647.0,78646.0,0.274019]
[1744126885947,0.00041914,78647.0,78646.0,0.271019]
[1744126886157,0.00041914,78647.0,78646.0,0.272019]
[1744126888626,0.26743414,78647.0,78646.0,0.005]
[1744126889582,0.40823363,78647.0,78646.0,0.005]
[1744126889795,0.254363,78628.0,78623.0,0.012718]
[1744126890051,0.267073,78630.0,78624.0,0.012718]
[1744126890196,0.254378,78624.0,78619.0,0.254388]
[1744126890398,0.254389,78620.0,78616.0,0.01272]
[1744126890595,0.012719,78620.0,78612.0,0.01272]
[1744126890808,0.254397,78618.0,78615.0,0.254404]
[1744126890999,0.267104,78621.0,78615.0,0.01272]
[1744126891199,4.931e-05,78617.0,78615.0,0.267123]
[1744126891422,0.012719,78617.0,78610.0,0.012721]
[1744126891657,0.00063317,78616.0,78612.0,0.267133]
[1744126891846,0.00082801,78616.0,78615.0,0.267124]
[1744126892055,0.34,78618.0,78616.0,0.254398]
[1744126892289,0.34,78618.0,78612.0,0.01672]
[1744126892529,0.34,78618.0,78614.0,0.254405]
[1744126892699,0.608107,78620.0,78619.0,0.002]
[1744126892901,0.34,78616.0,78612.0,0.267131]
[1744126893104,0.594401,78616.0,78613.0,0.254409]
[1744126893303,0.594401,78616.0,78610.0,0.254419]
[1744126893482,0.254407,78614.0,78611.0,0.254417]
[1744126893930,0.34,78615.0,78613.0,0.25441]
[1744126894321,0.34,78615.0,78611.0,0.01272]
[1744126894638,0.34,78615.0,78610.0,0.005]
[1744126894639,0.607137,78611.0,78610.0,0.005]
[1744126895809,0.607137,78611.0,78606.0,0.254432]
[1744126895810,0.25442,78610.0,78606.0,0.254432]
[1744126896005,0.01272,78611.0,78607.0,0.25443]
[1744126896238,0.254417,78611.0,78607.0,0.267151]
[1744126896449,0.254422,78610.0,78607.0,0.25443]
[1744126897309,0.268137,78611.0,78607.0,0.25443]
[1744126897530,0.001,78611.0,78609.0,0.254421]
[1744126897704,0.01272,78613.0,78602.0,0.254445]
[1744126897904,0.01352469,78615.0,78593.0,1.0076]
[1744126897905,0.254443,78603.0,78600.0,0.254451]
[1744126898282,0.254419,78611.0,78583.0,0.0976]
[1744126898283,0.012723,78592.0,78583.0,0.0976]
[1744126898514,0.254511,78582.0,78581.0,0.002]
[1744126898707,0.267253,78577.0,78546.0,0.4144]
[1744126898917,0.254557,78568.0,78561.0,0.267305]
[1744126899096,0.254557,78568.0,78542.0,1.00784]
[1744126899097,0.254586,78559.0,78551.0,0.01473]
[1744126899245,0.254591,78558.0,78548.0,0.012731]
[1744126899450,0.34,78557.0,78555.0,0.254596]
[1744126899846,0.00268049,78556.0,78553.0,0.254603]
[1744126900068,0.00268049,78556.0,78554.0,0.2546]
[1744126900281,0.594615,78550.0,78548.0,0.00012544]
[1744126900624,0.00272934,78549.0,78548.0,0.26747444]
[1744126901821,0.001,78557.0,78556.0,0.267324]
[1744126902189,0.00340411,78557.0,78556.0,0.267324]
[1744126902427,0.00240411,78557.0,78556.0,0.267324]
[1744126902645,0.01411229,78568.0,78566.0,0.254563]
[1744126902844,0.1,78619.0,78565.0,0.012728]
[1744126902845,0.0495,78599.0,78588.0,0.012724]
[1744126903048,0.012723,78597.0,78587.0,0.012724]
[1744126903249,0.12625864,78598.0,78588.0,0.012724]
[1744126903444,0.12625864,78598.0,78583.0,0.254506]
[1744126903445,0.254489,78589.0,78583.0,0.254506]
[1744126903710,0.12625864,78598.0,78583.0,0.254506]
[1744126903711,0.012723,78592.0,78583.0,0.267232]
[1744126903905,0.254485,78591.0,78587.0,0.254492]
[1744126904240,0.012724,78589.0,78583.0,0.00012544]
[1744126904441,0.254489,78589.0,78583.0,0.00012544]
[1744126904644,0.34,78588.0,78583.0,0.00012544]
[1744126904854,0.35454085,78584.0,78583.0,0.00012544]
[1744126905027,0.34,78572.0,78569.0,0.254552]
[1744126905409,0.34,78572.0,78570.0,0.254549]
[1744126905615,0.34,78572.0,78571.0,0.012727]
[1744126906058,0.34,78574.0,78571.0,0.267271]
[1744126906379,0.012727,78573.0,78569.0,0.006]
[1744126906787,0.012727,78573.0,78569.0,0.260551]
[1744126906983,0.267268,78573.0,78570.0,0.004]
[1744126907184,0.012727,78570.0,78569.0,0.006]
[1744126907419,0.254547,78571.0,78569.0,0.006]
[1744126907656,0.012728,78565.0,78559.0,0.254584]
[1744126907818,0.254553,78569.0,78565.0,0.254565]
[1744126908025,0.25456,78567.0,78563.0,0.267298]
[1744126908173,0.42912183,78570.0,78564.0,0.012728]
[1744126908367,0.254563,78566.0,78562.0,0.2673]
[1744126908838,0.41639483,78570.0,78562.0,0.012728]
[1744126908971,0.26728,78569.0,78562.0,0.012728]
[1744126909171,0.254566,78565.0,78563.0,0.001]
[1744126909390,0.254566,78565.0,78561.0,0.012728]
[1744126909671,0.011728,78566.0,78561.0,0.012728]
[1744126909911,0.267282,78569.0,78565.0,0.254566]
[1744126909912,0.34,78567.0,78565.0,0.254566]
[1744126910117,0.34,78567.0,78563.0,0.012728]
[1744126910343,0.34,78567.0,78563.0,0.2703]
[1744126910544,0.267297,78564.0,78563.0,0.004]
[1744126910944,0.267297,78564.0,78563.0,0.001]
[1744126911609,0.607307,78561.0,78560.0,0.00012574]
[1744126912236,0.62184785,78561.0,78560.0,0.00012574]
[1744126912436,0.74810649,78561.0,78560.0,0.00012574]
[1744126912825,1.15990649,78561.0,78560.0,0.00012574]
[1744126914091,1.16346449,78561.0,78560.0,0.00012574]
[1744126914323,1.16346449,78561.0,78560.0,0.00112574]
[1744126919034,1.187017,78561.0,78560.0,0.00112574]
[1744126919619,0.63441751,78561.0,78560.0,0.00112574]
[1744126920064,0.76067615,78561.0,78560.0,0.00112574]
[1744126920386,0.775217,78561.0,78560.0,0.00112574]
[1744126920720,0.36711051,78561.0,78560.0,0.00112574]
[1744126920918,0.36711051,78561.0,78560.0,0.26843674]
[1744126920919,0.02711051,78561.0,78560.0,0.26843674]
[1744126921124,0.02711051,78561.0,78560.0,0.00112574]
[1744126921302,0.012732,78539.0,78535.0,0.0459]
[1744126921476,0.267385,78538.0,78532.0,0.058133]
[1744126921907,0.267396,78535.0,78528.0,0.000336]
[1744126922283,0.2704669,78535.0,78528.0,0.000336]
[1744126922487,0.29405671,78535.0,78528.0,0.01307]
[1744126922886,0.29405671,78535.0,78528.0,0.267749]
[1744126923065,0.29405671,78535.0,78534.0,0.009336]
[1744126923267,0.29418219,78535.0,78534.0,0.018336]
[1744126923475,0.43598168,78535.0,78534.0,0.018336]
[1744126923682,0.267457,78517.0,78493.0,0.0454]
[1744126923888,0.012738,78504.0,78493.0,0.058139]
[1744126924101,0.01454085,78509.0,78503.0,0.267505]
[1744126924304,0.01454085,78509.0,78507.0,0.267488]
[1744126924305,0.34,78509.0,78507.0,0.267488]
[1744126924522,0.34,78509.0,78508.0,0.012737]
[1744126924928,0.34,78509.0,78507.0,0.267488]
[1744126925124,0.254744,78510.0,78505.0,0.267498]
[1744126925326,0.254754,78507.0,78502.0,0.254768]
[1744126925664,0.34,78505.0,78503.0,0.2551853]
[1744126925887,0.34,78505.0,78503.0,0.0004193]
[1744126926061,0.012738,78504.0,78503.0,0.0004193]
[1744126926259,0.0363404,78504.0,78503.0,0.0004193]
[1744126926406,0.0236024,78504.0,78503.0,0.0131573]
[1744126926606,0.0236024,78504.0,78503.0,0.2551863]
[1744126926864,0.0236024,78511.0,78510.0,0.254744]
[1744126927060,0.0236024,78511.0,78510.0,0.267481]
[1744126927215,0.254728,78515.0,78510.0,0.012737]
[1744126927421,0.34,78517.0,78508.0,0.012737]
[1744126927650,0.34,78517.0,78514.0,0.254729]
[1744126927817,0.254701,78524.0,78507.0,0.254751]
[1744126927818,0.012734,78528.0,78520.0,0.012735]
[1744126928018,0.254682,78529.0,78523.0,0.012735]
[1744126928218,0.02359564,78524.0,78523.0,0.267436]
[1744126928782,0.0139641,78538.0,78523.0,0.267436]
[1744126928783,0.02359564,78537.0,78536.0,0.267393]
[1744126928922,0.02359564,78537.0,78535.0,0.254662]
[1744126929128,0.02359564,78537.0,78536.0,0.267393]
[1744126929529,0.02359564,78537.0,78532.0,0.254662]
[1744126929530,0.254699,78524.0,78523.0,0.0474]
[1744126929734,0.012734,78526.0,78517.0,0.012736]
[1744126930049,0.00012546,78524.0,78522.0,0.012735]
[1744126930319,0.00012546,78524.0,78523.0,0.39369564]
[1744126936647,0.00012546,78524.0,78520.0,0.012735]
[1744126936967,0.254705,78523.0,78518.0,0.012735]
[1744126937188,0.254705,78523.0,78520.0,0.254711]
[1744126937402,0.02366934,78522.0,78520.0,0.25471]
[1744126937681,0.02366934,78522.0,78521.0,0.267443]
[1744126937892,0.00012546,78524.0,78523.0,0.267437]
[1744126939508,0.02382068,78524.0,78523.0,0.267437]
[1744126939717,0.02382068,78524.0,78523.0,0.39369564]
[1744126940032,0.0139641,78538.0,78537.0,0.267389]
[1744126940189,0.41639483,78560.0,78559.0,0.267314]